bitfinex/quotes_BTCUSD_20251021
["timestamp","ask_amount","ask_price","bid_price","bid_amount"]
[1761043518959,3.36783227,108250.0,108240.0,0.30201457]
[1761043519156,3.9725745,108250.0,108240.0,0.30201457]
[1761043519973,3.56625891,108250.0,108240.0,0.30201457]
[1761043520190,0.02783227,108250.0,108240.0,0.39183358]
[1761043520396,0.40636521,108250.0,108240.0,0.39183358]
[1761043521029,4.962e-05,108250.0,108240.0,0.39183358]
[1761043521654,0.40636521,108250.0,108240.0,0.39183358]
[1761043522520,0.40636521,108250.0,108240.0,0.39283358]
[1761043522948,4.962e-05,108250.0,108240.0,0.39183358]
[1761043523799,4.962e-05,108250.0,108240.0,0.39283358]
[1761043524251,0.40636521,108250.0,108240.0,0.39283358]
[1761043524716,0.40636521,108250.0,108240.0,0.39383358]
[1761043525586,4.962e-05,108250.0,108240.0,0.39383358]
[1761043531328,0.59284301,108300.0,108280.0,0.18470162]
[1761043531531,0.40631559,108290.0,108280.0,0.20317225]
[1761043531704,0.59965495,108290.0,108280.0,0.20317225]
[1761043532061,0.94036011,108290.0,108280.0,0.20317225]
[1761043532284,0.74702075,108290.0,108280.0,0.20317225]
[1761043532485,0.93171001,108290.0,108280.0,0.20317225]
[1761043532863,0.74702075,108290.0,108280.0,0.20317225]
[1761043533911,0.74802075,108290.0,108280.0,0.20317225]
[1761043534701,0.74702075,108290.0,108280.0,0.20317225]
[1761043535507,0.74702075,108290.0,108280.0,0.20417225]
[1761043535671,0.74702075,108290.0,108280.0,0.18570162]
[1761043537125,0.34070516,108290.0,108280.0,0.18570162]
[1761043537282,0.74702075,108290.0,108280.0,0.18570162]
[1761043538122,0.40702075,108290.0,108280.0,0.18570162]
[1761043538371,0.00070516,108290.0,108280.0,0.61552063]
[1761043538581,0.00070516,108290.0,108280.0,0.27552063]
[1761043538792,0.00070516,108290.0,108280.0,0.61552063]
[1761043538995,0.00070516,108290.0,108280.0,0.73268063]
[1761043539197,0.00070516,108290.0,108280.0,0.76886291]
[1761043539518,0.00070516,108290.0,108280.0,0.65170291]
[1761043539724,0.00070516,108290.0,108280.0,0.76886291]
[1761043540373,0.00070516,108290.0,108280.0,0.42986291]
[1761043541166,0.00070516,108290.0,108280.0,0.42886291]
[1761043541561,0.00070516,108290.0,108280.0,0.43086291]
[1761043541965,0.00070516,108290.0,108280.0,0.39468063]
[1761043546646,0.00070516,108290.0,108280.0,0.43086291]
[1761043563250,0.00070516,108290.0,108280.0,0.91906291]
[1761043566971,0.00049648,108300.0,108290.0,0.22087154]
[1761043567186,0.00049648,108300.0,108290.0,0.31069055]
[1761043567613,0.00049648,108300.0,108290.0,0.65069055]
[1761043567859,1e-08,108300.0,108290.0,0.65069055]
[1761043568611,1e-08,108300.0,108290.0,0.76773055]
[1761043568815,1e-08,108300.0,108290.0,0.76873055]
[1761043569252,0.01225036,108310.0,108300.0,0.56085448]
[1761043569509,0.01239918,108310.0,108300.0,0.76771349]
[1761043570355,0.01239918,108310.0,108300.0,0.66380277]
[1761043570562,0.01239918,108310.0,108300.0,0.65067349]
[1761043570774,0.01239918,108310.0,108300.0,0.73153121]
[1761043572047,0.01239918,108310.0,108300.0,0.73253121]
[1761043572576,0.01239918,108310.0,108300.0,0.27549121]
[1761043572794,0.41818491,108310.0,108300.0,0.39253121]
[1761043573239,0.4459482,108310.0,108300.0,0.39253121]
[1761043574107,0.43354902,108310.0,108300.0,0.39253121]
[1761043574318,0.02776329,108310.0,108300.0,0.39253121]
[1761043577975,0.02846827,108310.0,108300.0,0.39253121]
[1761043578608,0.434254,108310.0,108300.0,0.39253121]
[1761043582452,0.61890915,108310.0,108300.0,0.39253121]
[1761043582709,0.61890915,108310.0,108300.0,0.3027122]
[1761043583303,0.21312342,108310.0,108300.0,0.3027122]
[1761043583720,0.434254,108310.0,108300.0,0.3027122]
[1761043584063,0.61890915,108310.0,108300.0,0.3027122]
[1761043585508,3.95890915,108310.0,108300.0,0.001]
[1761043585843,3.95890915,108310.0,108300.0,0.118]
[1761043586243,3.95890915,108310.0,108300.0,0.001]
[1761043586637,0.1846722,108300.0,108290.0,0.30168332]
[1761043586838,0.59045793,108300.0,108290.0,0.30168332]
[1761043587256,0.59045793,108300.0,108290.0,0.117]
[1761043587468,3.99624366,108300.0,108290.0,0.117]
[1761043587678,0.18468926,108290.0,108280.0,0.18470242]
[1761043587883,3.59047499,108290.0,108280.0,0.30170242]
[1761043588306,3.59047499,108290.0,108280.0,0.117]
[1761043588940,0.18470631,108280.0,108270.0,0.18471163]
[1761043589152,0.59049204,108280.0,108270.0,0.39153064]
[1761043589358,3.59079265,108280.0,108270.0,0.30172337]
[1761043589770,3.43385939,108280.0,108270.0,0.30172337]
[1761043589985,0.43385939,108280.0,108270.0,0.30172337]
[1761043590827,0.40608634,108280.0,108270.0,0.30172337]
[1761043591858,0.40608634,108280.0,108270.0,0.30272337]
[1761043595364,0.59079265,108280.0,108270.0,0.30272337]
[1761043595567,0.40608634,108280.0,108270.0,0.30272337]
[1761043596183,0.41859162,108280.0,108270.0,0.30272337]
[1761043596601,0.40608634,108280.0,108270.0,0.30272337]
[1761043597209,0.59079265,108280.0,108270.0,0.30272337]
[1761043597424,0.60285606,108280.0,108270.0,0.30272337]
[1761043598284,3.60285606,108280.0,108270.0,0.001]
[1761043599304,0.18472337,108270.0,108260.0,0.30173662]
[1761043599519,0.59080971,108270.0,108260.0,0.30174043]
[1761043600561,0.59080971,108270.0,108260.0,0.30223691]
[1761043601239,0.40608634,108270.0,108260.0,0.30223691]
[1761043602985,0.40608634,108270.0,108260.0,0.30323691]
[1761043604472,0.54388789,108310.0,108260.0,0.30323691]
[1761043604473,0.01019999,108320.0,108290.0,3.0]
[1761043604700,0.11675288,108360.0,108340.0,0.204604]
[1761043604701,0.0002,108360.0,108340.0,0.204604]
[1761043604899,0.0002,108360.0,108350.0,0.78507427]
[1761043605155,0.0002,108360.0,108350.0,0.76661558]
[1761043605297,0.0002,108370.0,108360.0,0.18456995]
[1761043605555,0.0002,108370.0,108360.0,0.61065627]
[1761043605811,0.0002,108370.0,108360.0,0.60865627]
[1761043606020,0.00034879,108370.0,108360.0,0.32857122]
[1761043606229,0.00034879,108370.0,108360.0,0.73465756]
[1761043606429,0.00034879,108370.0,108360.0,0.75174362]
[1761043607161,0.00034879,108370.0,108360.0,0.34565728]
[1761043607378,0.00034879,108370.0,108360.0,0.75174362]
[1761043607586,0.00034879,108370.0,108360.0,1.15782996]
[1761043608221,0.00034879,108370.0,108360.0,1.15882996]
[1761043608433,0.00034879,108370.0,108360.0,1.15982996]
[1761043608887,0.00034879,108370.0,108360.0,1.05505348]
[1761043610432,0.00034879,108370.0,108360.0,0.34765728]
[1761043611049,0.00034879,108370.0,108360.0,1.05505348]
[1761043613164,0.00034879,108370.0,108360.0,0.34765728]
[1761043613385,0.00034879,108370.0,108360.0,0.311475]
[1761043615297,0.00034879,108370.0,108360.0,0.29438894]
[1761043615693,0.00034879,108370.0,108360.0,0.28438895]
[1761043615694,0.00281471,108370.0,108360.0,0.28438895]
[1761043615905,0.00281471,108370.0,108360.0,0.29438894]
[1761043616249,0.00281471,108370.0,108360.0,0.31134133]
[1761043616472,0.00281471,108370.0,108360.0,0.28438895]
[1761043616680,0.00281471,108370.0,108360.0,0.29438894]
[1761043617309,0.00281471,108370.0,108360.0,0.28438895]
[1761043617548,0.00281471,108370.0,108360.0,0.29438894]
[1761043617769,0.00281471,108370.0,108360.0,0.28438895]
[1761043617980,0.00281471,108370.0,108360.0,0.29438894]
[1761043618672,0.00281471,108370.0,108360.0,0.20656993]
[1761043618908,0.00281471,108370.0,108360.0,0.29638894]
[1761043619110,0.00281471,108370.0,108360.0,0.20656993]
[1761043621209,0.00281471,108370.0,108360.0,0.19656994]
[1761043621432,0.18736763,108370.0,108360.0,0.20656993]
[1761043621632,0.18736763,108370.0,108360.0,0.19656994]
[1761043623952,0.00281471,108370.0,108360.0,0.20656993]
[1761043624284,0.18736763,108370.0,108360.0,0.19656994]
[1761043624515,0.18736763,108370.0,108360.0,0.20656993]
[1761043627412,0.18736763,108370.0,108360.0,0.02199998]
[1761043627661,0.18458698,108350.0,108320.0,0.19387]
[1761043627855,0.7073962,108340.0,108330.0,0.27444007]
[1761043628105,0.18460402,108340.0,108330.0,0.08981901]
[1761043628760,0.5902458,108340.0,108330.0,0.08981901]
[1761043629419,0.5902458,108340.0,108330.0,0.27444007]
[1761043629639,0.18460402,108340.0,108330.0,0.27444007]
[1761043629854,0.5902458,108340.0,108330.0,0.27444007]
[1761043630478,0.5902458,108340.0,108330.0,0.09081901]
[1761043630957,0.18460402,108340.0,108330.0,0.09081901]
[1761043631171,0.89286006,108340.0,108330.0,0.18562106]
[1761043631385,0.89286006,108340.0,108330.0,0.001]
[1761043631601,0.18460402,108340.0,108330.0,0.001]
[1761043632046,0.18460402,108340.0,108330.0,0.002]
[1761043632301,0.1968626,108340.0,108330.0,0.03549214]
[1761043632524,0.1968626,108340.0,108330.0,0.2026511]
[1761043632779,0.6578229,108340.0,108330.0,0.01803004]
[1761043632997,0.6578229,108340.0,108330.0,0.01703004]
[1761043633299,0.6578229,108340.0,108330.0,0.01803004]
[1761043633555,0.6578229,108340.0,108330.0,0.01903004]
[1761043633727,0.65923239,108340.0,108330.0,0.01903004]
[1761043634160,0.65923239,108340.0,108330.0,0.03749214]
[1761043634916,0.65923239,108340.0,108330.0,0.01903004]
[1761043635115,0.00140949,108340.0,108330.0,0.34811449]
[1761043635330,0.00140949,108340.0,108330.0,0.32965239]
[1761043638638,0.00140949,108340.0,108330.0,0.34818239]
[1761043638854,0.00140949,108340.0,108330.0,1.13061269]
[1761043639054,0.00140949,108340.0,108330.0,1.19566809]
[1761043639283,0.00140949,108340.0,108330.0,0.73470779]
[1761043641056,0.00140949,108340.0,108330.0,0.73479461]
[1761043646477,0.00140949,108340.0,108330.0,0.29355693]
[1761043646478,0.46236979,108340.0,108330.0,0.29355693]
[1761043647460,0.25654566,108340.0,108330.0,0.29355693]
[1761043648108,0.10402756,108340.0,108330.0,0.29355693]
[1761043650727,0.81120396,108340.0,108330.0,0.29355693]
[1761043650929,0.81120396,108340.0,108330.0,0.29359693]
[1761043652677,0.34,108360.0,108350.0,0.18457311]
[1761043652830,0.34,108360.0,108350.0,0.22014866]
[1761043652831,1.15120396,108360.0,108350.0,0.22014866]
[1761043653056,1.15190844,108360.0,108350.0,0.20168997]
[1761043653845,1.33647839,108360.0,108350.0,0.20168997]
[1761043657992,1.33647839,108360.0,108350.0,0.20170384]
[1761043658641,1.33647839,108360.0,108350.0,0.22023384]
[1761043658852,1.33647839,108360.0,108350.0,0.20270384]
[1761043661464,1.33647839,108360.0,108350.0,0.01811686]
[1761043661663,1.33647839,108360.0,108350.0,0.20270384]
[1761043661865,1.33647839,108360.0,108350.0,0.01811686]
[1761043662135,1.33647839,108360.0,108350.0,0.22116253]
[1761043662419,1.33643224,108360.0,108350.0,0.20270384]
[1761043663798,1.33643224,108360.0,108350.0,0.01811686]
[1761043664346,0.99647839,108360.0,108350.0,0.01811686]
[1761043665551,0.99647839,108360.0,108350.0,0.03657555]
[1761043666369,0.99647839,108360.0,108350.0,0.03661555]
[1761043666712,0.99647839,108360.0,108350.0,0.22120253]
[1761043666917,0.99647839,108360.0,108350.0,0.01815686]
[1761043667560,0.99647839,108360.0,108350.0,0.03661555]
[1761043668542,0.99647839,108360.0,108350.0,0.22120253]
[1761043668741,0.99647839,108360.0,108350.0,0.20274384]
[1761043669372,0.18527443,108360.0,108350.0,0.20274384]
[1761043669579,0.59087641,108360.0,108350.0,0.20274384]
[1761043669777,0.99647839,108360.0,108350.0,0.20274384]
[1761043671168,0.18527443,108360.0,108350.0,0.20274384]
[1761043671381,0.99647839,108360.0,108350.0,0.20274384]
[1761043671577,0.59087641,108360.0,108350.0,0.20274384]
[1761043671804,0.99647839,108360.0,108350.0,0.20274384]
[1761043674286,0.00070448,108360.0,108350.0,0.20274384]
[1761043674513,0.81190844,108360.0,108350.0,0.20281389]
[1761043675396,0.99647839,108360.0,108350.0,0.20281389]
[1761043677957,1.06504948,108360.0,108350.0,0.01822691]
[1761043678196,4.40208037,108360.0,108350.0,0.01822691]
[1761043678391,3.99647839,108360.0,108350.0,0.01822691]
[1761043680932,0.18527443,108360.0,108350.0,0.22127258]
[1761043681138,0.59087641,108360.0,108350.0,0.20281389]
[1761043682609,0.59087641,108360.0,108350.0,0.01822691]
[1761043682840,0.99647839,108360.0,108350.0,0.01822691]
[1761043683057,0.99647839,108360.0,108350.0,0.20281389]
[1761043683268,0.99647839,108360.0,108350.0,0.01822691]
[1761043684828,0.81190844,108360.0,108350.0,0.22127258]
[1761043685040,0.99647839,108360.0,108350.0,0.20281389]
[1761043689189,0.18527443,108360.0,108350.0,0.20281389]
[1761043689412,0.99647839,108360.0,108350.0,0.20281389]
[1761043692859,0.59077391,108360.0,108350.0,0.20281389]
[1761043698723,0.59077391,108360.0,108350.0,0.01822691]
[1761043698925,0.59077391,108360.0,108350.0,0.0366856]
[1761043699529,0.59077391,108360.0,108350.0,0.22127258]
[1761043699678,0.59077391,108360.0,108350.0,0.20281523]
[1761043699875,0.59077391,108360.0,108350.0,0.22127392]
[1761043700103,0.59077391,108360.0,108350.0,0.03668694]
[1761043700887,0.59077391,108360.0,108350.0,0.22127392]
[1761043701103,0.59077391,108360.0,108350.0,0.20281523]
[1761043702311,0.59077391,108360.0,108350.0,0.01822825]
[1761043702520,0.59077391,108360.0,108350.0,0.03668694]
[1761043703443,0.18527443,108360.0,108350.0,0.03668694]
[1761043703633,0.58066361,108360.0,108350.0,0.03668694]
[1761043704744,0.59006943,108360.0,108350.0,0.03668694]
[1761043705983,0.18456995,108360.0,108350.0,0.03668694]
[1761043706363,0.59006943,108360.0,108350.0,0.03668694]
[1761043711667,0.61782149,108360.0,108350.0,0.03668694]
[1761043714257,0.21232201,108360.0,108350.0,0.03668694]
[1761043714475,0.61782149,108360.0,108350.0,0.03668694]
[1761043715447,0.01454732,108360.0,108350.0,0.03668694]
[1761043715647,0.60461675,108360.0,108350.0,0.03668694]
[1761043715897,0.59006943,108360.0,108350.0,0.03668694]
[1761043716105,3.99556891,108360.0,108350.0,0.01822825]
[1761043717290,4.02332354,108360.0,108350.0,0.01822825]
[1761043717679,3.21232458,108360.0,108350.0,0.20281523]
[1761043717921,3.21232458,108360.0,108350.0,0.01822825]
[1761043717922,3.59006943,108360.0,108350.0,0.01822825]
[1761043718982,3.99556891,108360.0,108350.0,0.01822825]
[1761043719790,3.99556891,108360.0,108350.0,0.01823932]
[1761043723490,3.59006943,108360.0,108350.0,0.22128499]
[1761043723662,3.59006943,108360.0,108350.0,0.2028263]
[1761043725748,3.59006943,108360.0,108350.0,0.01823932]
[1761043725932,3.59006943,108360.0,108350.0,0.01949869]
[1761043726149,0.23433249,108370.0,108350.0,0.31110454]
[1761043726150,0.04055141,108370.0,108350.0,0.31110454]
[1761043726357,0.63060484,108370.0,108350.0,0.29264585]
[1761043726655,0.40549948,108360.0,108350.0,0.29264585]
[1761043727061,0.63060484,108370.0,108360.0,0.18456995]
[1761043727316,0.63060484,108370.0,108360.0,0.20176981]
[1761043730125,0.63060484,108370.0,108360.0,0.01719986]
[1761043730374,0.22510536,108370.0,108360.0,0.03665685]
[1761043730580,0.63060484,108370.0,108360.0,0.03665685]
[1761043731150,0.63060484,108370.0,108360.0,0.2212268]
[1761043731359,0.02810057,108370.0,108360.0,0.29258882]
[1761043731569,0.00034879,108370.0,108360.0,1.25741006]
[1761043731779,0.00034879,108370.0,108360.0,1.49827006]
[1761043731987,0.00034879,108370.0,108360.0,1.27546598]
[1761043732229,0.00034879,108370.0,108360.0,1.21041058]
[1761043732436,0.00034879,108370.0,108360.0,1.27546598]
[1761043732765,0.00070097,108370.0,108360.0,1.27441911]
[1761043732980,0.00070097,108370.0,108360.0,1.27741911]
[1761043733391,0.00070097,108370.0,108360.0,1.21036371]
[1761043733623,0.00070097,108370.0,108360.0,1.23810528]
[1761043733816,1e-08,108370.0,108360.0,1.59302016]
[1761043734022,1e-08,108370.0,108360.0,1.71062016]
[1761043734226,1e-08,108370.0,108360.0,1.59302016]
[1761043734438,1e-08,108380.0,108370.0,0.5607352]
[1761043734646,1e-08,108380.0,108370.0,1.09170668]
[1761043735067,1e-08,108380.0,108370.0,1.20934668]
[1761043735290,0.09997487,108440.0,108430.0,0.18445079]
[1761043735507,0.10047086,108440.0,108430.0,0.31045208]
[1761043735713,0.09547086,108440.0,108430.0,0.32753941]
[1761043735920,0.09533986,108440.0,108430.0,0.32753941]
[1761043736333,0.09533986,108440.0,108430.0,0.44533941]
[1761043736751,0.09533986,108440.0,108430.0,0.32753941]
[1761043737214,0.09533986,108440.0,108430.0,0.44629941]
[1761043737411,0.09342283,108440.0,108430.0,0.86945208]
[1761043737640,0.10776537,108470.0,108460.0,0.52439977]
[1761043737847,0.10791412,108470.0,108460.0,0.69642156]
[1761043738057,0.10791412,108470.0,108460.0,0.98312104]
[1761043738272,0.10791412,108470.0,108460.0,0.69650156]
[1761043738542,0.10791412,108470.0,108460.0,1.12971531]
[1761043738804,0.10791412,108470.0,108460.0,0.69515484]
[1761043739077,0.10791412,108470.0,108460.0,0.81407484]
[1761043739275,0.10791412,108470.0,108460.0,0.31897256]
[1761043739483,0.10791412,108470.0,108460.0,0.41037829]
[1761043739695,0.10791412,108470.0,108460.0,0.44656057]
[1761043740324,0.10791412,108470.0,108460.0,0.29125829]
[1761043740534,0.10791412,108470.0,108460.0,0.39433878]
[1761043740754,10.11515586,108500.0,108490.0,0.18434878]
[1761043740963,10.087434,108500.0,108490.0,0.78890494]
[1761043741174,10.05971214,108500.0,108490.0,0.78739291]
[1761043741387,10.00426842,108500.0,108490.0,1.49360192]
[1761043741585,9.97654656,108500.0,108490.0,1.49360192]
[1761043741798,9.9488247,108500.0,108490.0,0.78739291]
[1761043742018,9.92110284,108500.0,108490.0,0.78739291]
[1761043742234,9.4740825,108500.0,108490.0,0.78739291]
[1761043742452,9.44636064,108500.0,108490.0,1.49360192]
[1761043742684,9.41867314,108500.0,108490.0,1.49460192]
[1761043742902,9.39098564,108500.0,108490.0,0.78839291]
[1761043743114,9.36329814,108500.0,108490.0,0.78839291]
[1761043743340,9.33561064,108500.0,108490.0,0.78829568]
[1761043743583,9.33561064,108500.0,108490.0,0.77147007]
[1761043743812,8.3052341,108500.0,108490.0,1.47767908]
[1761043744051,8.15662966,108500.0,108490.0,1.61426422]
[1761043744266,8.00318727,108500.0,108490.0,1.74655766]
[1761043744489,7.52410486,108500.0,108490.0,4.04956608]
[1761043744718,6.99426447,108500.0,108490.0,4.77072658]
[1761043744978,6.78409867,108500.0,108490.0,5.07794316]
[1761043745193,6.28886598,108500.0,108490.0,4.97890757]
[1761043745415,6.28886598,108500.0,108490.0,2.4842289]
[1761043745416,0.93442809,108500.0,108490.0,2.4842289]
[1761043745628,0.12295472,108540.0,108530.0,3.20428082]
[1761043745629,0.09526722,108540.0,108530.0,3.20428082]
[1761043745841,0.09526722,108540.0,108530.0,4.79996845]
[1761043745842,0.06772834,108540.0,108530.0,4.79996845]
[1761043746057,0.04004084,108540.0,108530.0,4.52918247]
[1761043746314,0.14151423,108570.0,108530.0,4.54615072]
[1761043746518,0.14200942,108570.0,108560.0,0.23041218]
[1761043746732,0.14200942,108570.0,108560.0,0.93662119]
[1761043746952,1e-08,108630.0,108570.0,0.4373]
[1761043747177,0.14552959,108690.0,108680.0,0.19402648]
[1761043747404,0.11833789,108690.0,108680.0,0.32850647]
[1761043747644,0.11833789,108690.0,108680.0,0.31862648]
[1761043747645,0.07621217,108690.0,108680.0,0.31862648]
[1761043747890,0.07621217,108690.0,108680.0,0.21168153]
[1761043748106,0.20085217,108690.0,108680.0,0.11747405]
[1761043748569,3.20085217,108690.0,108680.0,0.08981901]
[1761043748782,3.20085217,108690.0,108680.0,0.11748039]
[1761043749016,4.00608066,108690.0,108620.0,0.01920639]
[1761043749268,3.0,108660.0,108630.0,0.00920556]
[1761043749494,0.12528,108660.0,108630.0,0.21168198]
[1761043749717,0.07621217,108690.0,108660.0,0.00920301]
[1761043749954,3.08981901,108680.0,108660.0,0.01840603]
[1761043750195,0.12572,108670.0,108660.0,0.10822504]
[1761043750427,0.12572,108670.0,108660.0,0.29228541]
[1761043750428,0.46572,108670.0,108660.0,0.29228541]
[1761043750646,0.46572,108670.0,108660.0,0.27387938]
[1761043750874,0.12576,108670.0,108660.0,0.27387938]
[1761043751308,0.12576,108680.0,108670.0,0.18403158]
[1761043751546,0.12576,108680.0,108670.0,0.10822335]
[1761043751775,0.12576,108680.0,108670.0,0.29226678]
[1761043751994,0.13313089,108680.0,108670.0,0.27386244]
[1761043752219,0.13313089,108680.0,108670.0,0.08981901]
[1761043752438,0.13313089,108680.0,108670.0,0.10822335]
[1761043752649,0.13313089,108680.0,108670.0,0.29226678]
[1761043752951,1.1793399,108680.0,108670.0,0.08981901]
[1761043753177,4.37256771,108680.0,108660.0,0.001]
[1761043753395,4.23658546,108670.0,108660.0,0.001]
[1761043753629,4.35625373,108670.0,108660.0,0.001]
[1761043753848,3.0,108630.0,108610.0,0.01841451]
[1761043754073,0.34,108630.0,108620.0,0.08981901]
[1761043754311,3.52412866,108620.0,108610.0,0.01841451]
[1761043754521,3.0,108610.0,108590.0,0.04609742]
[1761043754733,3.34,108610.0,108600.0,0.08981901]
[1761043754949,0.34,108610.0,108600.0,0.08981901]
[1761043755169,0.46606855,108610.0,108600.0,0.08981901]
[1761043755618,0.46606855,108610.0,108600.0,0.27398107]
[1761043755824,0.46606855,108610.0,108600.0,0.08981901]
[1761043756037,0.46606855,108610.0,108600.0,0.27398107]
[1761043756258,0.46606855,108610.0,108590.0,0.18417713]
[1761043756478,0.46606855,108610.0,108600.0,0.0184162]
[1761043756717,0.65021365,108610.0,108600.0,0.0184162]
[1761043756972,0.46606855,108610.0,108600.0,0.0184162]
[1761043757193,1.10883735,108610.0,108600.0,0.0184162]
[1761043757419,0.65021365,108610.0,108600.0,0.0184162]
[1761043757630,0.92469225,108610.0,108600.0,0.0184162]
[1761043757854,1.10883735,108610.0,108600.0,0.0184162]
[1761043758121,1.10883735,108610.0,108590.0,0.09081901]
[1761043758122,1.10883735,108610.0,108590.0,0.0184179]
[1761043758329,1.10883735,108610.0,108580.0,0.01841959]
[1761043758555,0.79877225,108610.0,108590.0,0.27399336]
[1761043758785,0.9246637,108600.0,108590.0,0.08981901]
[1761043759010,0.9246637,108600.0,108560.0,0.25727135]
[1761043759011,0.34,108590.0,108560.0,0.1934015]
[1761043759223,0.34,108590.0,108570.0,0.2740315]
[1761043759224,0.46596,108580.0,108570.0,0.2740315]
[1761043760137,0.02769038,108590.0,108570.0,0.2740315]
[1761043760389,0.10293038,108590.0,108580.0,0.18419598]
[1761043760666,0.10293038,108590.0,108580.0,0.27401499]
[1761043760875,0.07524,108590.0,108580.0,0.27401499]
[1761043761753,0.34,108600.0,108590.0,0.18417902]
[1761043761992,0.1258,108600.0,108590.0,0.29241593]
[1761043762221,0.00014855,108610.0,108600.0,0.22034434]
[1761043762448,0.00014855,108610.0,108600.0,0.66016334]
[1761043762683,0.00014855,108610.0,108600.0,0.67016333]
[1761043762922,0.26230206,108650.0,108640.0,0.18409425]
[1761043763148,0.2624505,108650.0,108640.0,0.29232268]
[1761043763354,0.2624505,108650.0,108640.0,0.27391326]
[1761043763571,0.00014844,108650.0,108640.0,0.27391326]
[1761043763786,0.00014844,108650.0,108640.0,0.39991326]
[1761043764027,0.00014844,108650.0,108640.0,0.43609554]
[1761043764292,0.00014844,108650.0,108640.0,0.46376256]
[1761043764511,0.00646805,108650.0,108640.0,0.46376256]
[1761043766034,0.00646805,108650.0,108640.0,0.33776256]
[1761043766249,0.00646805,108650.0,108640.0,0.46592256]
[1761043766477,0.46509175,108650.0,108640.0,0.09181901]
[1761043766704,0.00646805,108650.0,108640.0,0.27591326]
[1761043768085,0.00646805,108650.0,108640.0,0.32883618]
[1761043768086,1e-08,108650.0,108640.0,0.32883618]
[1761043768362,1e-08,108650.0,108640.0,0.33883617]
[1761043768590,1e-08,108650.0,108640.0,0.68883616]
[1761043768805,0.04808076,108690.0,108680.0,0.18402649]
[1761043769021,0.04857546,108690.0,108680.0,0.41852814]
[1761043769236,0.04857546,108690.0,108680.0,0.4001255]
[1761043769463,0.04857546,108690.0,108680.0,0.4001655]
[1761043769925,0.04857546,108690.0,108680.0,0.4003655]
[1761043770352,0.04857546,108690.0,108680.0,0.4003255]
[1761043770796,0.04857546,108690.0,108680.0,0.41709973]
[1761043771302,0.04857546,108690.0,108680.0,0.43850778]
[1761043771532,0.04857546,108690.0,108680.0,0.45529036]
[1761043773050,0.16828936,108720.0,108710.0,0.18397571]
[1761043773051,0.04425413,108720.0,108710.0,0.18397571]
[1761043773268,0.04440253,108720.0,108710.0,0.29219229]
[1761043773488,0.04440253,108720.0,108710.0,0.27379472]
[1761043774571,0.50302623,108720.0,108710.0,0.08981901]
[1761043774802,0.04440253,108720.0,108710.0,0.27379472]
[1761043775033,0.04685655,108720.0,108710.0,0.27379472]
[1761043775711,0.04685655,108720.0,108710.0,0.40003472]
[1761043775712,0.50548025,108720.0,108710.0,0.40003472]
[1761043775989,0.50548025,108720.0,108700.0,0.31015112]
[1761043776215,0.84302623,108720.0,108710.0,0.01839757]
[1761043776433,0.38440253,108720.0,108710.0,0.10821658]
[1761043776648,0.84548025,108720.0,108710.0,0.10821658]
[1761043777100,1.02943904,108720.0,108710.0,0.10821658]
[1761043777366,1.02943904,108720.0,108710.0,0.08981901]
[1761043777593,1.02943904,108720.0,108710.0,0.01839757]
[1761043777818,1.02943904,108720.0,108700.0,0.01839926]
[1761043778059,1.02698502,108720.0,108700.0,0.10821827]
[1761043778527,0.4586237,108710.0,108700.0,0.01839926]
[1761043778743,0.4586237,108710.0,108690.0,0.01681384]
[1761043778744,0.4586237,108710.0,108690.0,0.20240536]
[1761043778952,0.4586237,108710.0,108700.0,0.10821827]
[1761043779177,0.5845837,108710.0,108700.0,0.01839926]
[1761043779854,0.5845837,108710.0,108700.0,0.2023919]
[1761043780072,0.12596,108710.0,108700.0,0.29221091]
[1761043780296,0.04440253,108720.0,108710.0,0.18397571]
[1761043780519,0.04440253,108720.0,108710.0,0.29219229]
[1761043780739,0.04440253,108720.0,108710.0,0.27379472]
[1761043781399,0.04440253,108720.0,108710.0,0.29060242]
[1761043782275,0.04440253,108720.0,108710.0,0.29059516]
[1761043782754,0.04440253,108720.0,108710.0,0.29159516]
[1761043783193,0.04440253,108720.0,108710.0,0.41739516]
[1761043783405,0.04440253,108720.0,108710.0,0.29159516]
[1761043783617,0.04440253,108720.0,108710.0,0.41739516]
[1761043783911,0.04685655,108720.0,108710.0,0.41739516]
[1761043784117,0.04685655,108720.0,108710.0,0.41639516]
[1761043784331,0.04685655,108720.0,108710.0,0.29058663]
[1761043784550,0.04685655,108720.0,108710.0,0.09181901]
[1761043784766,0.50440139,108720.0,108710.0,0.02039757]
[1761043784978,0.50440139,108720.0,108710.0,0.002]
[1761043785245,0.04685655,108720.0,108710.0,0.29419229]
[1761043785449,0.04685655,108720.0,108710.0,0.41827201]
[1761043786297,0.04685655,108720.0,108710.0,0.41627201]
[1761043786514,0.04685655,108720.0,108710.0,0.87381685]
[1761043787147,0.04685655,108720.0,108710.0,0.41627201]
[1761043787792,0.04685655,108720.0,108710.0,0.41727201]
[1761043788233,1e-08,108720.0,108710.0,0.90999913]
[1761043788656,1e-08,108730.0,108720.0,1.13523075]
[1761043788907,1e-08,108730.0,108720.0,0.79330221]
[1761043789111,1e-08,108730.0,108720.0,1.26084704]
[1761043789373,0.01117737,108770.0,108760.0,0.18389113]
[1761043789641,0.01132569,108770.0,108760.0,0.41845925]
[1761043789882,0.01132569,108770.0,108750.0,0.18390804]
[1761043789883,0.46887053,108770.0,108750.0,0.18390804]
[1761043790112,0.80887053,108770.0,108760.0,0.01838911]
[1761043790566,0.80887053,108770.0,108740.0,0.18392409]
[1761043790567,0.34633302,108760.0,108740.0,0.18392409]
[1761043790776,0.4664,108760.0,108750.0,0.0183908]
[1761043790991,0.4664,108760.0,108750.0,0.20229884]
[1761043791473,0.4664,108760.0,108750.0,0.29211785]
[1761043791715,0.1264,108760.0,108750.0,0.27372705]
[1761043791938,0.35132569,108770.0,108760.0,0.18389113]
[1761043792162,0.01132569,108770.0,108760.0,0.29209925]
[1761043792382,0.01132569,108770.0,108760.0,0.27371014]
[1761043794352,0.53197105,108780.0,108760.0,0.27371014]
[1761043794353,1e-08,108780.0,108770.0,0.18387423]
[1761043794576,1e-08,108780.0,108770.0,0.30208065]
[1761043794784,1e-08,108780.0,108770.0,0.86779807]
[1761043795001,0.00210162,108780.0,108770.0,0.74123807]
[1761043795211,0.00210162,108780.0,108770.0,0.27369324]
[1761043795426,0.00210162,108780.0,108770.0,0.43663552]
[1761043795637,0.00210162,108780.0,108770.0,0.89418036]
[1761043796507,1e-08,108780.0,108770.0,0.89418036]
[1761043796733,1e-08,108780.0,108770.0,0.43651552]
[1761043796949,1e-08,108780.0,108770.0,0.89406036]
[1761043797389,1e-08,108780.0,108770.0,0.30987552]
[1761043797614,1e-08,108780.0,108770.0,0.27369324]
[1761043798080,1e-08,108780.0,108770.0,0.27669324]
[1761043798502,1e-08,108780.0,108770.0,0.27369324]
[1761043798927,1e-08,108780.0,108770.0,0.27569324]
[1761043800281,1e-08,108780.0,108770.0,0.40221324]
[1761043800938,1e-08,108780.0,108770.0,0.27569324]
[1761043801166,1e-08,108780.0,108770.0,0.41917705]